bitfinex/quotes_ETHUSD_20240821
["timestamp","ask_amount","ask_price","bid_price","bid_amount"]
[1724250341786,3.1401,2607.4,2606.9,3.83583]
[1724250341979,3.1401,2607.4,2606.8,0.3851]
[1724250342179,3.1401,2607.4,2606.8,4.22119]
[1724250342491,3.1401,2607.4,2606.8,0.3851]
[1724250343391,3.1401,2607.4,2606.7,0.3851]
[1724250344207,3.1401,2607.4,2606.4,3.83661]
[1724250344208,3.83556,2607.2,2606.4,4.22171]
[1724250344372,3.1401,2607.4,2606.3,0.3851]
[1724250344373,3.8357,2607.1,2606.3,0.3851]
[1724250344573,0.38357,2607.0,2606.3,0.3851]
[1724250345016,0.38357,2607.0,2605.8,3.83748]
[1724250345217,3.8364,2606.7,2605.8,0.3851]
[1724250345416,3.83617,2606.8,2605.8,4.2226]
[1724250345570,3.83629,2606.7,2605.8,4.2226]
[1724250345977,3.83629,2606.7,2605.7,0.3851]
[1724250346174,3.83672,2606.4,2605.7,0.3851]
[1724250346417,3.1042,2606.5,2605.3,4.22339]
[1724250346418,3.837,2606.2,2605.3,4.22339]
[1724250346589,3.837,2606.2,2605.3,0.3851]
[1724250346800,6.9408,2606.5,2605.3,0.3851]
[1724250346986,4.0324429,2606.4,2605.6,0.3851]
[1724250347316,7.8692329,2606.4,2605.5,3.83803]
[1724250347492,7.8692329,2606.4,2605.3,8.06153]
[1724250347493,3.83686,2606.3,2605.3,8.06153]
[1724250347674,0.78693029,2606.2,2605.3,0.3851]
[1724250347875,0.78693029,2606.2,2605.4,3.83807]
[1724250348098,4.0324429,2606.4,2605.6,3.83779]
[1724250348304,7.8692529,2606.4,2604.3,0.7]
[1724250348528,3.837,2606.2,2605.3,0.3851]
[1724250348720,0.3837,2606.1,2605.3,4.22331]
[1724250348875,11.7060429,2606.4,2605.4,3.83816]
[1724250349077,3.83742,2606.0,2605.0,3.83863]
[1724250349377,3.83745,2605.9,2605.0,3.83863]
[1724250349583,3.83745,2605.9,2604.1,3.84004]
[1724250349584,3.1434,2605.7,2605.1,0.3851]
[1724250349817,3.1434,2605.7,2604.0,4.0344]
[1724250349818,3.83815,2605.5,2604.5,3.83949]
[1724250350177,6.98117,2605.7,2604.0,7.17454]
[1724250350178,3.1434,2605.7,2604.6,3.83934]
[1724250350492,7.67646,2605.4,2604.5,0.3851]
[1724250350690,3.83818,2605.4,2604.2,3.83984]
[1724250350921,3.1998,2605.5,2604.0,3.84016]
[1724250350922,3.1265,2605.5,2604.0,3.84016]
[1724250351127,3.1265,2604.8,2603.4,3.84105]
[1724250351325,3.83978,2604.4,2603.4,3.84105]
[1724250351473,3.83978,2604.4,2603.4,0.3851]
[1724250351474,3.0578,2604.3,2603.4,0.3851]
[1724250351925,3.0578,2604.3,2603.4,4.22621]
[1724250352624,3.0578,2604.3,2603.4,3.84111]
[1724250352777,3.0578,2604.3,2603.2,3.84138]
[1724250352983,4.529838,2604.2,2603.0,4.22681]
[1724250353208,4.529838,2604.2,2603.0,0.3851]
[1724250353209,3.84041,2603.9,2603.0,0.3851]
[1724250353414,3.1089,2603.9,2603.0,0.3851]
[1724250353774,3.1089,2603.9,2603.0,4.22672]
[1724250353974,3.1089,2603.9,2603.2,3.84137]
[1724250354190,3.1089,2603.9,2603.3,3.84126]
[1724250354392,3.1089,2603.9,2603.2,4.648187]
[1724250354591,3.1089,2603.9,2603.4,3.84101]
[1724250354795,3.1089,2603.9,2603.2,4.648187]
[1724250355079,3.0,2604.3,2602.6,6.84216]
[1724250355080,3.84079,2603.7,2602.6,3.8423]
[1724250355318,3.84002,2604.2,2601.9,3.84327]
[1724250355319,3.1566,2603.6,2601.9,3.84327]
[1724250355534,3.1566,2603.6,2602.8,3.84199]
[1724250355936,6.99754,2603.6,2602.6,3.84225]
[1724250356092,3.1566,2603.6,2602.6,4.226425]
[1724250356286,6.99746,2603.6,2602.6,4.226425]
[1724250356514,3.84098,2603.5,2602.6,0.384225]
[1724250356695,3.1566,2603.6,2602.8,3.84187]
[1724250357104,3.1566,2603.6,2603.0,3.84169]
[1724250357498,3.1566,2603.6,2603.0,7.68332]
[1724250357699,3.1566,2603.6,2603.0,4.648482]
[1724250357908,3.1566,2603.6,2603.0,0.806842]
[1724250358229,3.1566,2603.6,2602.9,0.07683015]
[1724250358438,3.1566,2603.6,2603.3,3.84124]
[1724250358935,3.3107,2604.1,2603.5,3.84087]
[1724250359149,3.3107,2604.1,2603.6,0.076815]
[1724250359436,3.3107,2604.1,2603.9,3.84029]
[1724250359785,3.3107,2604.1,2603.9,3.84027]
[1724250359989,3.1611,2604.8,2604.1,3.84007]
[1724250360230,3.47721,2604.8,2603.8,3.84048]
[1724250360432,3.47721,2604.8,2603.6,0.3851]
[1724250360615,3.47721,2604.8,2604.0,3.84013]
[1724250360616,3.1611,2604.8,2604.0,3.84013]
[1724250360818,3.1611,2604.8,2604.1,3.84]
[1724250361019,3.1611,2604.8,2604.2,3.83991]
[1724250361234,3.1611,2604.8,2604.0,3.84013]
[1724250361235,3.1611,2604.8,2604.0,3.84016]
[1724250361453,3.1611,2604.8,2603.5,3.0]
[1724250361454,3.8394,2604.6,2603.6,0.3851]
[1724250361628,0.31611,2604.7,2603.6,0.3851]
[1724250361629,3.2267,2604.5,2603.6,0.3851]
[1724250361990,3.84013,2604.1,2603.2,3.84131]
[1724250362186,4.15544,2604.7,2602.3,3.9015]
[1724250362187,3.84041,2603.9,2602.8,3.84189]
[1724250362504,3.344,2604.0,2602.9,0.3851]
[1724250362706,3.344,2604.0,2603.3,0.3851]
[1724250363140,3.344,2604.0,2603.6,3.84081]
[1724250363341,3.344,2604.0,2603.5,0.3851]
[1724250363672,3.344,2604.0,2603.0,4.22672]
[1724250363875,3.344,2604.0,2603.5,3.84089]
[1724250364035,3.344,2604.0,2603.0,5.033648]
[1724250364036,3.344,2604.0,2603.2,3.84133]
[1724250364248,3.344,2604.0,2603.3,3.84124]
[1724250364464,3.344,2604.0,2603.2,3.84133]
[1724250364657,3.344,2604.0,2603.3,3.84125]
[1724250364863,4.062396,2604.0,2603.3,3.84125]
[1724250365058,3.84063,2603.8,2602.8,7.68386]
[1724250365321,3.0436,2603.7,2602.6,7.68441]
[1724250365670,3.0436,2603.7,2602.6,4.22728]
[1724250365671,3.84086,2603.6,2602.6,4.22728]
[1724250365889,3.84116,2603.4,2602.4,3.84249]
[1724250366167,3.0436,2603.3,2602.4,3.84249]
[1724250366379,3.0436,2603.3,2602.2,3.84277]
[1724250366523,3.0,2603.6,2602.0,3.84317]
[1724250366524,3.84185,2603.0,2602.0,3.84317]
[1724250366727,6.90361,2602.8,2601.8,0.3851]
[1724250367022,6.90361,2602.8,2601.7,3.8436]
[1724250367023,3.84229,2602.7,2601.7,3.8436]
[1724250367380,0.690335,2602.9,2601.6,3.84372]
[1724250367381,3.84233,2602.6,2601.6,3.84368]
[1724250367544,3.0615,2602.5,2601.6,3.84368]
[1724250367720,3.0,2603.2,2602.1,0.3851]
[1724250367721,3.0778,2603.0,2602.1,0.3851]
[1724250367920,6.91955,2603.0,2602.1,0.3851]
[1724250368122,3.84189,2602.9,2602.0,3.84319]
[1724250368441,3.0778,2603.0,2601.9,3.84322]
[1724250368442,0.691969,2602.8,2601.9,3.84322]
[1724250368639,3.2235,2602.8,2602.0,3.84319]
[1724250369353,3.2235,2602.8,2602.2,0.3851]
[1724250369539,3.2235,2602.8,2602.2,4.22791]
[1724250369740,3.2235,2602.8,2602.2,0.3851]
[1724250370040,3.2235,2602.8,2601.7,3.84354]
[1724250370244,0.32235,2602.7,2601.7,3.84354]
[1724250370465,0.32235,2602.7,2601.5,3.84391]
[1724250370466,3.84247,2602.5,2601.5,3.84391]
[1724250370660,3.2235,2602.6,2600.9,3.2052]
[1724250370871,3.2235,2602.6,2602.3,3.84265]
[1724250371023,3.2235,2602.6,2602.1,3.84298]
[1724250371224,3.2235,2602.6,2602.4,3.84248]
[1724250371546,3.2235,2602.6,2602.2,3.84279]
[1724250371725,3.2235,2602.6,2602.3,3.84274]
[1724250371926,3.2235,2602.6,2602.3,8.07044]
[1724250372232,3.0451,2603.2,2602.6,3.84218]
[1724250372426,3.0451,2603.2,2602.4,3.84254]
[1724250372626,3.0451,2603.2,2602.0,3.84313]
[1724250372929,3.84045,2603.9,2601.8,4.22856]
[1724250372930,3.8421,2602.8,2601.8,4.22856]
[1724250373125,3.0451,2602.9,2601.8,4.22856]
[1724250373126,0.68872,2602.7,2601.8,4.22856]
[1724250373325,6.88699,2602.9,2601.8,4.22856]
[1724250373558,3.0,2602.8,2601.8,4.22851]
[1724250373772,6.84203,2602.8,2601.8,4.2285]
[1724250374284,3.84216,2602.7,2601.8,0.3851]
[1724250374421,3.0451,2602.6,2601.8,0.3851]
[1724250374623,3.0451,2602.6,2601.7,4.22871]
[1724250374822,3.0451,2602.6,2601.7,0.3851]
[1724250375025,3.0451,2602.6,2601.8,3.92024196]
[1724250375269,3.7180303,2602.6,2601.8,3.84338]
[1724250375971,3.84254,2602.5,2601.5,4.22894]
[1724250376173,3.84254,2602.5,2600.4,9.32649]
[1724250376174,3.0,2602.5,2601.8,0.3851]
[1724250376339,3.67180303,2602.5,2601.8,0.3851]
[1724250376544,3.67180303,2602.5,2601.9,3.84325]
[1724250376745,3.67180303,2602.5,2601.8,0.3851]
[1724250376925,3.3154,2602.4,2601.8,0.3851]
[1724250377125,3.3154,2602.2,2601.3,3.84409]
[1724250377325,3.3154,2602.2,2601.3,3.84423]
[1724250377531,3.3154,2602.2,2601.8,3.84341]
[1724250377731,3.3154,2602.2,2601.7,3.84362]
[1724250378032,3.0565,2602.7,2601.7,0.3851]
[1724250378231,0.19165115,2603.7,2601.4,0.07686015]
[1724250378232,3.0565,2603.5,2601.5,3.84385]
[1724250378432,3.0565,2603.5,2601.9,3.84327]
[1724250378433,3.2576,2603.5,2601.9,3.84327]
[1724250378727,3.2576,2602.8,2602.2,3.84282]
[1724250379175,3.2576,2602.8,2602.1,4.22807]
[1724250379492,3.2576,2602.8,2602.3,3.84274]
[1724250380074,3.2576,2602.8,2602.0,3.8431]
[1724250380446,4.267557,2602.8,2601.8,4.22855]
[1724250380651,3.0698,2602.3,2601.5,3.84383]
[1724250381027,3.0698,2602.3,2601.5,0.3851]
[1724250381258,6.91261,2602.3,2601.5,0.3851]
[1724250381461,3.0698,2602.3,2601.8,3.84349]
[1724250381667,3.0698,2602.3,2601.9,0.3851]
[1724250383229,3.0698,2602.3,2601.2,3.84433]
[1724250383230,3.84291,2602.2,2601.2,3.84433]
[1724250383548,3.84291,2602.2,2601.0,3.84456]
[1724250383549,3.2234,2601.8,2601.0,3.84456]
[1724250383851,3.2234,2601.8,2601.1,3.84444]
[1724250384224,3.2234,2601.8,2601.2,3.84425]
[1724250384405,3.2234,2601.8,2601.3,0.3851]
[1724250384603,6.0774,2602.2,2601.6,3.84368]
[1724250384802,3.0774,2602.2,2601.8,3.84347]
[1724250385013,3.0774,2602.2,2601.8,0.768715]
[1724250385227,3.0774,2602.2,2602.0,3.84311]
[1724250385438,3.089,2602.6,2602.0,3.84311]
[1724250385868,3.089,2602.6,2601.8,0.3851]
[1724250385869,3.089,2602.6,2602.2,3.84277]
[1724250386055,5.481,2603.6,2602.1,0.07685139]
[1724250386056,3.089,2603.6,2602.3,0.07684519]
[1724250386203,1.02730641,2603.5,2602.7,3.84204]
[1724250386403,3.089,2603.6,2602.8,0.07682885]
[1724250386651,3.089,2603.6,2602.9,3.84183]
[1724250386853,3.089,2603.6,2602.7,3.84204]
[1724250387166,3.089,2603.6,2602.5,0.3851]
[1724250387167,3.08803943,2603.6,2602.5,0.3851]
[1724250387457,3.08803943,2603.6,2602.9,3.84185]
[1724250387620,3.08803943,2603.6,2603.2,3.84133]
[1724250387950,3.83985,2604.3,2603.3,3.84125]
[1724250388154,3.83853,2605.2,2603.4,0.55]
[1724250388155,3.83927,2604.7,2603.4,0.55]
[1724250388465,3.83927,2604.7,2603.7,3.84067]
[1724250388751,3.83936,2604.6,2603.7,3.84067]
[1724250388907,3.83927,2604.7,2603.5,3.84092]
[1724250388908,4.607383,2604.5,2603.5,3.84088]
[1724250389108,3.83952,2604.5,2603.5,3.84088]
[1724250389543,3.83992,2604.3,2603.3,3.84121]
[1724250389808,3.83952,2604.5,2603.6,3.84082]
[1724250389965,3.2018,2604.3,2603.6,3.84082]
[1724250390168,3.2018,2604.3,2603.4,3.84103]
[1724250390331,3.2018,2604.3,2603.5,0.6268036]
[1724250390531,0.60226003,2605.1,2603.5,0.6268036]
[1724250390532,3.2018,2604.7,2604.0,3.8402]
[1724250390775,3.2018,2604.7,2604.1,3.84005]
[1724250391060,3.2018,2604.7,2604.0,3.84012]
[1724250391216,3.2018,2604.7,2604.1,3.84008]
[1724250391418,3.2018,2604.7,2604.2,3.83981]
[1724250392467,3.0937,2605.3,2604.6,3.83934]
[1724250392682,3.0937,2605.3,2604.4,1.0851]
[1724250392968,3.302,2605.7,2604.9,3.83888]
[1724250393320,3.302,2605.7,2605.0,3.83873]
[1724250393741,3.302,2605.7,2605.2,3.83846]
[1724250393960,3.0277,2606.2,2604.9,5.06847418]
[1724250394278,3.0277,2606.2,2605.8,3.83759]
[1724250394483,0.60198912,2606.3,2606.1,3.83704]
[1724250394652,3.0438,2606.9,2606.3,3.83672]
[1724250394851,3.64554222,2606.9,2606.5,0.3851]
[1724250395059,3.0438,2606.9,2606.2,3.837]
[1724250395544,3.0438,2606.9,2606.0,3.83724]
[1724250395778,3.0438,2606.9,2606.0,4.520964]
[1724250395928,6.87977,2606.9,2605.9,3.83743]
[1724250396134,6.87977,2606.9,2605.7,3.8377]
[1724250396135,3.83632,2606.7,2605.7,3.8377]
[1724250396375,3.0438,2606.9,2605.7,3.8377]
[1724250396745,3.0438,2606.9,2606.2,3.83686]
[1724250396944,3.0438,2606.9,2606.4,0.3851]
[1724250397315,3.83468,2607.8,2606.5,0.07671857]
[1724250397316,3.1895,2607.7,2606.5,0.07671857]
[1724250397464,3.1895,2607.7,2606.6,3.83638]
[1724250397465,7.02431,2607.7,2606.6,3.83638]
[1724250397671,3.1895,2607.7,2606.7,3.83614]
[1724250397867,3.1895,2607.7,2607.2,3.83551]
[1724250398237,3.1895,2607.7,2606.8,0.07670364]
[1724250398238,3.0281,2608.4,2607.3,0.07669653]
[1724250398586,3.0281,2608.4,2607.5,3.83496]
[1724250398749,3.0281,2608.4,2607.3,3.83536]
[1724250398935,3.83363,2608.5,2606.9,3.83593]
[1724250398936,3.83451,2607.9,2606.9,3.83593]
[1724250399135,3.8337,2608.5,2606.3,3.83674]
[1724250399136,3.83531,2607.4,2606.3,3.83674]
[1724250399336,3.83484,2607.7,2606.5,3.83645]
[1724250399337,3.3056,2607.6,2606.5,3.83645]
[1724250399655,6.83511,2607.5,2606.5,3.83645]
[1724250399830,6.83511,2607.5,2606.1,10.67412]
[1724250399831,3.83555,2607.2,2606.1,10.67412]
[1724250400036,3.0501,2607.1,2606.1,3.83702]
[1724250400283,0.688565,2607.0,2606.1,3.83702]
[1724250400482,0.688565,2607.0,2605.5,3.237]
[1724250400483,3.83614,2606.8,2605.7,3.83764]
[1724250400684,3.688565,2607.0,2605.3,3.83819]
[1724250400685,3.0501,2606.7,2605.3,0.7]
[1724250400889,3.0501,2606.7,2606.2,3.83693]
[1724250401408,3.0501,2606.7,2605.8,3.83749]
[1724250401560,3.65511,2606.7,2606.0,3.83716]
[1724250402009,7.49147,2606.7,2605.6,7.67561]
[1724250402335,3.65511,2606.7,2605.9,3.8374]
[1724250402458,3.65511,2606.7,2606.1,3.83711]
[1724250402459,3.0501,2606.7,2606.1,3.83711]
[1724250402663,3.0501,2606.7,2606.1,3.83709]
[1724250402868,3.0501,2606.7,2605.6,0.4466741]
[1724250402869,3.0501,2606.7,2605.9,3.83741]
[1724250403106,3.0501,2606.7,2605.9,3.83734]
[1724250403286,0.30501,2606.6,2605.9,7.67466]
[1724250403462,0.30501,2606.6,2606.0,3.83729]
[1724250403663,3.0501,2606.7,2606.2,3.83698]
[1724250404075,3.0501,2606.7,2606.5,3.83653]
[1724250404278,3.0501,2606.7,2606.4,3.83669]
[1724250404618,3.0501,2606.7,2606.3,3.83675]
[1724250404796,3.0868,2607.2,2606.3,3.83676]
[1724250404962,3.0868,2607.2,2606.6,3.8363]
[1724250405314,3.0868,2607.2,2606.0,0.7]
[1724250405315,3.0868,2607.2,2606.0,3.83726]
[1724250405468,3.0868,2607.2,2605.6,4.9845041]
[1724250405671,3.0868,2607.2,2606.3,3.83671]
[1724250405969,3.0868,2607.2,2606.4,3.83665]
[1724250406278,3.0868,2607.2,2606.6,3.83631]
[1724250406477,3.0868,2607.2,2606.8,3.83602]
[1724250406675,3.0868,2607.2,2606.6,3.8363]
[1724250406907,3.0868,2607.2,2606.4,3.83662]
[1724250407086,3.0868,2607.2,2606.2,3.83694]
[1724250407087,3.0868,2607.2,2606.0,3.83717]
[1724250407292,0.30868,2607.1,2606.2,3.8369]
[1724250407811,3.30868,2607.1,2606.3,3.83675]
[1724250407991,3.30868,2607.1,2606.5,3.83653]
[1724250408178,3.0,2607.1,2606.5,3.83653]
[1724250408362,3.0,2607.1,2605.7,3.0]
[1724250408363,3.0868,2607.2,2606.2,0.3844]
[1724250408566,3.0868,2607.2,2607.0,3.83578]
[1724250408772,3.0868,2607.2,2606.7,3.83616]
[1724250409425,3.0868,2607.2,2606.7,4.22056]
[1724250409561,3.0868,2607.2,2606.9,3.83586]
[1724250409763,3.0868,2607.2,2606.9,7.67174]
[1724250410870,3.0868,2607.2,2607.0,3.83579]
[1724250411072,3.0,2607.9,2607.1,0.3844]
[1724250411073,3.197,2607.7,2607.1,0.3844]
[1724250411397,3.197,2607.7,2607.2,7.67084]
[1724250411566,3.197,2607.7,2607.3,3.83533]
[1724250412474,3.197,2607.7,2607.3,3.83526]
[1724250412625,3.197,2607.7,2607.1,3.83555]
[1724250412827,3.83514,2607.5,2606.7,3.83618]
[1724250413024,3.1221,2607.4,2606.7,3.83618]
[1724250413329,3.1221,2607.4,2606.7,7.67236]
[1724250413486,3.43431,2607.4,2606.7,8.05676]
[1724250413694,3.43431,2607.4,2606.7,4.22058]
[1724250413895,3.1221,2607.4,2606.9,3.83585]
[1724250414095,3.1221,2607.4,2607.1,3.83556]
[1724250414331,3.1221,2607.4,2606.8,3.83608]
[1724250414641,3.1221,2607.4,2607.0,3.83579]
[1724250415140,3.1221,2607.4,2606.9,0.3844]
[1724250415351,3.1221,2607.4,2606.8,3.83597]
[1724250416301,3.1221,2607.4,2606.6,4.22072]
[1724250416302,3.1221,2607.4,2606.9,3.83588]
[1724250416747,3.1221,2607.4,2606.9,7.67178]
[1724250416907,3.1221,2607.4,2606.9,3.83588]
[1724250417306,3.1221,2607.4,2606.9,3.83596]
[1724250417525,3.1221,2607.4,2606.9,4.22036]
[1724250417695,3.1221,2607.4,2607.0,3.83579]
[1724250417891,3.1221,2607.4,2606.9,3.83588]
[1724250418123,3.1221,2607.4,2606.8,0.3844]
[1724250418340,3.1221,2607.4,2606.9,3.83597]
[1724250418552,3.1221,2607.4,2606.8,0.3844]
[1724250418837,3.43431,2607.4,2606.8,0.3844]
[1724250419156,3.43431,2607.4,2606.6,0.3844]
[1724250419296,3.43431,2607.4,2606.3,3.83673]
[1724250419297,6.90944,2607.2,2606.3,3.83673]
[1724250419491,3.0,2607.1,2606.3,7.67349]
[1724250419704,0.990944,2607.0,2606.3,3.83673]
[1724250420106,0.990944,2607.0,2606.3,7.67347]
[1724250420343,0.990944,2607.0,2606.4,3.83661]
[1724250420542,0.990944,2607.0,2606.3,3.83673]
[1724250420776,3.291,2606.7,2605.9,0.3844]
[1724250421040,3.291,2606.7,2605.7,3.83765]
[1724250421251,3.291,2606.7,2605.2,3.83843]
[1724250421402,3.291,2606.7,2606.1,3.83712]
[1724250421602,3.291,2606.7,2606.1,7.67416]
[1724250421912,3.96000944,2606.7,2605.9,3.83735]
[1724250422129,7.79636944,2606.7,2605.7,3.83762]
[1724250422654,3.291,2606.7,2606.0,3.83726]
[1724250422955,3.291,2606.7,2605.7,0.3844]
[1724250423132,5.481,2607.6,2605.7,0.3844]
[1724250423133,3.2068,2607.4,2606.5,3.83653]
[1724250423298,7.04207,2607.4,2606.5,3.83653]
[1724250423501,7.04207,2607.4,2606.5,3.83646]
[1724250423502,1.087727,2607.3,2606.5,3.83646]
[1724250423821,1.087727,2607.3,2606.4,3.83662]
[1724250424177,1.087727,2607.3,2606.1,3.83705]
[1724250424178,3.1145,2607.0,2606.1,3.83705]
[1724250424299,3.1145,2607.0,2606.3,3.83671]
[1724250424659,3.1145,2607.0,2606.4,3.83662]
[1724250424803,3.1145,2607.0,2605.9,6.8374]
[1724250424804,3.1145,2607.0,2606.5,3.83644]
[1724250425002,3.1145,2607.0,2606.6,4.22073]
[1724250425511,3.1145,2607.0,2606.7,3.83625]
[1724250426099,3.1145,2607.0,2606.6,0.3844]
[1724250426295,3.1145,2607.0,2606.5,3.83645]
[1724250427426,3.1145,2607.0,2606.6,3.83633]
[1724250427633,3.1145,2607.0,2606.6,3.83632]
[1724250427804,3.1145,2607.0,2606.7,3.83616]
[1724250428004,3.1145,2607.0,2606.6,3.8363]
[1724250428245,3.1145,2607.0,2606.4,0.3844]
[1724250428466,3.1145,2607.0,2606.9,3.83597]
[1724250428618,3.83458,2607.9,2606.8,3.83612]
[1724250428619,3.3326,2607.5,2607.0,3.83582]
[1724250428821,3.3326,2607.5,2607.4,3.83523]
[1724250429064,3.1161,2608.4,2607.4,3.83523]
[1724250429267,3.83399,2608.3,2607.4,3.83523]
[1724250429428,3.1915,2607.9,2606.5,0.55]
[1724250429605,3.1915,2607.9,2606.8,4.38608]
[1724250429804,3.1915,2607.9,2607.4,3.83523]
[1724250430210,3.1915,2608.3,2607.4,4.21963]
[1724250430405,3.1915,2608.3,2607.4,4.21956]
[1724250430605,3.1915,2608.3,2607.7,3.83478]
[1724250431107,3.1915,2608.3,2607.5,7.67006]
[1724250431303,3.1915,2608.3,2607.6,0.07668753]
[1724250431515,3.6019471,2608.3,2607.5,3.83496]
[1724250431754,3.83407,2608.2,2607.3,3.83525]
[1724250431898,3.6019471,2608.3,2607.1,4.22005]
[1724250432099,3.6019471,2608.3,2607.5,3.835]
[1724250432535,3.83422,2608.1,2607.1,3.83565]
[1724250432713,3.83422,2608.1,2606.7,6.8362]
[1724250432714,3.1253,2607.9,2607.0,3.83572]
[1724250432933,3.1253,2607.9,2607.3,3.8353]
[1724250433601,3.1253,2607.9,2607.1,3.83559]
[1724250433602,3.1253,2607.9,2607.2,3.83551]
[1724250433802,3.1253,2607.9,2607.3,3.83536]
[1724250434048,3.1253,2607.9,2607.3,3.83528]
[1724250434264,3.1253,2607.9,2607.1,7.67119]
[1724250434265,3.43783,2607.9,2607.1,7.67119]
[1724250434551,3.43783,2607.9,2606.7,3.8362]
[1724250434552,3.43783,2607.9,2607.3,3.83536]
[1724250434846,3.43783,2607.9,2607.1,8.05555]
[1724250435218,0.343783,2607.8,2607.1,4.21996]
[1724250435409,0.343783,2607.8,2606.6,4.53636]
[1724250435410,0.343783,2607.8,2606.7,0.3844]
[1724250435611,4.178433,2607.8,2607.1,0.3844]
[1724250436123,4.178433,2607.8,2607.0,3.83572]
[1724250436124,0.343783,2607.8,2607.0,3.83572]
[1724250436335,0.343783,2607.8,2607.2,3.83552]
[1724250436548,0.343783,2607.8,2606.8,0.9344]
[1724250436549,3.2341,2607.6,2606.8,4.22043]
[1724250436856,3.343783,2607.8,2606.8,0.3844]
[1724250436857,7.18573,2607.4,2606.8,0.3844]
[1724250437441,3.83539,2607.3,2606.8,0.3844]
[1724250437657,3.8356,2607.2,2606.4,0.3844]
[1724250438010,3.2165,2607.1,2606.4,0.3844]
[1724250438210,3.2165,2607.1,2606.6,0.3844]
[1724250438412,3.2165,2607.1,2606.8,0.3844]
[1724250438879,3.53815,2607.1,2606.8,0.3844]
[1724250439665,3.1418,2606.8,2606.3,0.3844]
[1724250439826,3.1418,2606.8,2606.3,3.83681]
[1724250440008,3.1418,2606.8,2606.4,3.83662]
[1724250440542,3.1418,2606.8,2606.2,7.67381]
[1724250440706,3.1418,2606.8,2606.3,3.83683]
[1724250440912,3.1418,2606.8,2606.2,3.8369]
[1724250441220,3.45598,2606.8,2606.0,3.8372]
[1724250441424,7.29213,2606.8,2606.0,3.8372]
[1724250441654,3.0687,2606.7,2606.0,3.8372]
[1724250442213,3.3539,2606.3,2605.9,0.3844]
[1724250442511,0.719061,2606.2,2605.6,3.83786]
[1724250442747,3.3539,2606.3,2605.3,4.22267]
[1724250443063,3.3539,2606.3,2605.6,3.83778]
[1724250443256,3.3539,2606.3,2605.9,3.83733]
[1724250443464,3.3539,2606.3,2605.5,3.83793]
[1724250443746,3.3539,2606.3,2604.9,1.9674631]
[1724250443946,3.3539,2606.3,2605.7,3.83771]
[1724250444693,3.3539,2606.3,2605.0,0.4996741]
[1724250444694,3.83708,2606.2,2605.3,3.83822]
[1724250444896,6.1568,2606.1,2605.3,3.83822]
[1724250445225,6.1568,2606.1,2604.6,5.0389341]
[1724250445226,3.1568,2606.1,2604.6,5.0389341]
[1724250445352,3.1568,2606.1,2605.7,3.83762]
[1724250445545,3.1568,2606.1,2605.1,0.07675527]
[1724250445546,3.1568,2606.1,2605.5,3.8379]
[1724250445946,3.1568,2606.1,2604.6,4.53926]
[1724250445947,3.47248,2606.1,2605.3,7.67647]
[1724250446200,3.47248,2606.1,2605.3,3.83823]
[1724250446344,3.47248,2606.1,2605.4,3.83816]
[1724250446543,3.47248,2606.1,2605.4,3.83818]
[1724250446744,3.47248,2606.1,2605.3,3.83823]
[1724250446993,3.47248,2606.1,2604.9,3.83883]
[1724250446994,3.3551,2605.8,2604.9,3.83883]
[1724250447149,3.3551,2605.8,2605.1,7.67697]
[1724250447351,3.3551,2605.8,2605.1,3.83848]
[1724250447610,3.3551,2605.8,2605.0,0.3844]
[1724250447818,3.347248,2606.0,2605.2,3.83834]
[1724250447976,3.3033,2606.4,2605.7,3.83762]
[1724250448513,3.3033,2606.4,2605.9,3.83744]
[1724250449120,3.3033,2606.4,2605.9,3.83734]
[1724250449770,3.3033,2606.4,2606.0,3.83725]
[1724250449970,3.3033,2606.4,2605.9,3.83733]
[1724250450304,3.3033,2606.4,2605.7,7.67529]
[1724250450507,4.017271,2606.4,2605.7,3.83764]
[1724250450816,4.017271,2606.4,2605.8,3.83756]
[1724250450984,3.3033,2606.4,2605.8,3.83756]
[1724250451335,3.3033,2606.4,2605.8,3.43456]
[1724250451641,3.3033,2606.4,2605.4,0.3844]
[1724250451850,3.3033,2606.4,2605.9,3.83743]
[1724250452144,3.3033,2606.4,2606.0,3.83728]
[1724250453105,3.3033,2606.4,2605.9,3.83743]
[1724250453283,3.3033,2606.4,2606.1,3.83712]
[1724250453735,3.3033,2606.4,2606.1,3.83706]
[1724250453944,3.3033,2606.4,2606.2,3.83699]
[1724250454148,3.2577,2606.8,2606.2,0.767405]
[1724250454348,3.2577,2606.8,2606.7,3.83626]
[1724250454560,8.5577,2606.8,2605.7,0.8840741]
[1724250454839,8.5577,2606.8,2602.8,1.25237089]
[1724250454840,3.83941,2604.6,2602.8,1.25237089]
[1724250455050,5.3,2603.1,2602.5,0.76809381]
[1724250455206,5.3,2603.1,2601.6,5.42440047]
[1724250455207,3.8406,2603.8,2601.8,3.84346]
[1724250455387,2.00486009,2604.3,2602.1,0.7]
[1724250455585,5.3,2603.5,2602.5,0.49747376]
[1724250455847,5.3,2603.5,2602.4,0.89885256]
[1724250456135,3.1013,2603.4,2602.4,0.4013788]
[1724250457049,6.94243,2603.4,2601.9,0.49747376]
[1724250457227,6.94243,2603.4,2601.7,3.84363]
[1724250457228,2.7998,2603.3,2601.7,3.84363]
[1724250457589,2.7998,2603.3,2600.6,5.52477892]